[Event "Titled Tuesday Blitz June 27 Late 2023"]
[White "Mickiewicz, Piotr"]
[Black "Przybylski, Wojciech"]
[WhiteFideId "1114891"]
[BlackFideId "1117599"]
[WhiteElo "2447"]
[BlackElo "2584"]
[Result "1-0"]
[Round "7"]
[TimeControl "180+2"]
[Date "2023.06.27"]
[WhiteClock "0:00:14"]
[BlackClock "0:00:04"]
[Board "74"]

1. e4 {[%clk 0:03:00]}  e5 {[%clk 0:02:59]} 2. Nf3 {[%clk 0:03:00]}  Nc6 {[%clk 0:02:59]} 3. Bb5 {[%clk 0:03:00]}  Nf6 {[%clk 0:02:58]} 4. Qe2 {[%clk 0:02:58]}  d6 {[%clk 0:02:54]} 5. c3 {[%clk 0:02:57]}  Be7 {[%clk 0:02:53]} 6. O-O {[%clk 0:02:55]}  O-O {[%clk 0:02:53]} 7. Rd1 {[%clk 0:02:53]}  a6 {[%clk 0:02:52]} 8. Ba4 {[%clk 0:02:52]}  b5 {[%clk 0:02:52]} 9. Bc2 {[%clk 0:02:50]}  Re8 {[%clk 0:02:52]} 10. d3 {[%clk 0:02:48]}  Bb7 {[%clk 0:02:51]} 11. Nbd2 {[%clk 0:02:48]}  Nb8 {[%clk 0:02:50]} 12. Nf1 {[%clk 0:02:48]}  d5 {[%clk 0:02:47]} 13. Ng3 {[%clk 0:02:48]}  Nbd7 {[%clk 0:02:45]} 14. Nf5 {[%clk 0:02:45]}  Bf8 {[%clk 0:02:45]} 15. Bg5 {[%clk 0:02:39]}  c5 {[%clk 0:02:42]} 16. a4 {[%clk 0:02:25]}  Qb6 {[%clk 0:02:39]} 17. axb5 {[%clk 0:02:20]}  axb5 {[%clk 0:02:39]} 18. Rxa8 {[%clk 0:02:19]}  Bxa8 {[%clk 0:02:39]} 19. Ra1 {[%clk 0:01:55]}  Bb7 {[%clk 0:02:35]} 20. h3 {[%clk 0:01:49]}  h6 {[%clk 0:02:32]} 21. Bd2 {[%clk 0:01:40]}  c4 {[%clk 0:02:32]} 22. exd5 {[%clk 0:01:34]}  Bxd5 {[%clk 0:02:30]} 23. dxc4 {[%clk 0:01:24]}  bxc4 {[%clk 0:02:21]} 24. Be3 {[%clk 0:01:23]}  Qc6 {[%clk 0:02:14]} 25. Ba4 {[%clk 0:01:12]}  Qb7 {[%clk 0:02:13]} 26. Bxd7 {[%clk 0:00:54]}  Nxd7 {[%clk 0:02:04]} 27. Ra7 {[%clk 0:00:50]}  Qc6 {[%clk 0:02:03]} 28. N3h4 {[%clk 0:00:38]}  Nf6 {[%clk 0:01:50]} 29. Qd1 {[%clk 0:00:26]}  Be4 {[%clk 0:01:46]} 30. Qa4 {[%clk 0:00:20]}  Rb8 {[%clk 0:01:37]} 31. Qxc6 {[%clk 0:00:19]}  Bxc6 {[%clk 0:01:36]} 32. Ne7+ {[%clk 0:00:19]}  Bxe7 {[%clk 0:01:33]} 33. Rxe7 {[%clk 0:00:20]}  Nd7 {[%clk 0:01:24]} 34. Nf5 {[%clk 0:00:17]}  Rxb2 {[%clk 0:01:22]} 35. Nd6 {[%clk 0:00:17]}  f6 {[%clk 0:01:14]} 36. Nf5 {[%clk 0:00:16]}  Kf8 {[%clk 0:01:08]} 37. Rxg7 {[%clk 0:00:15]}  Be4 {[%clk 0:00:50]} 38. Bxh6 {[%clk 0:00:14]}  Bxf5 {[%clk 0:00:49]} 39. Rxd7+ {[%clk 0:00:14]}  Ke8 {[%clk 0:00:49]} 40. Rc7 {[%clk 0:00:15]}  Be6 {[%clk 0:00:47]} 41. Bg7 {[%clk 0:00:16]}  Kd8 {[%clk 0:00:29]} 42. Ra7 {[%clk 0:00:15]}  e4 {[%clk 0:00:20]} 43. Bxf6+ {[%clk 0:00:16]}  Kc8 {[%clk 0:00:21]} 44. Bd4 {[%clk 0:00:16]}  Rb1+ {[%clk 0:00:20]} 45. Kh2 {[%clk 0:00:14]}  Bd5 {[%clk 0:00:21]} 46. Kg3 {[%clk 0:00:14]}  Rd1 {[%clk 0:00:20]} 47. Ra5 {[%clk 0:00:13]}  Bc6 {[%clk 0:00:16]} 48. Rc5 {[%clk 0:00:14]}  Kd7 {[%clk 0:00:17]} 49. Rxc4 {[%clk 0:00:14]}  Rg1 {[%clk 0:00:18]} 50. Be3 {[%clk 0:00:13]}  Rh1 {[%clk 0:00:15]} 51. Rd4+ {[%clk 0:00:14]}  Ke6 {[%clk 0:00:15]} 52. c4 {[%clk 0:00:15]}  Ra1 {[%clk 0:00:12]} 53. Rd8 {[%clk 0:00:15]}  Ra4 {[%clk 0:00:11]} 54. c5 {[%clk 0:00:15]}  Bd7 {[%clk 0:00:09]} 55. Rh8 {[%clk 0:00:16]}  Kd5 {[%clk 0:00:09]} 56. Rh5+ {[%clk 0:00:16]}  Kc4 {[%clk 0:00:09]} 57. Rg5 {[%clk 0:00:17]}  Ra6 {[%clk 0:00:08]} 58. Re5 {[%clk 0:00:17]}  Bc6 {[%clk 0:00:08]} 59. h4 {[%clk 0:00:18]}  Ra8 {[%clk 0:00:08]} 60. h5 {[%clk 0:00:17]}  Rh8 {[%clk 0:00:08]} 61. Kh4 {[%clk 0:00:17]}  Kd3 {[%clk 0:00:08]} 62. g4 {[%clk 0:00:17]}  Ke2 {[%clk 0:00:08]} 63. g5 {[%clk 0:00:17]}  Be8 {[%clk 0:00:08]} 64. Rxe8 {[%clk 0:00:16]}  Rxe8 {[%clk 0:00:07]} 65. g6 {[%clk 0:00:17]}  Kf3 {[%clk 0:00:07]} 66. Kg5 {[%clk 0:00:17]}  Re6 {[%clk 0:00:08]} 67. Kf5 {[%clk 0:00:17]}  Re8 {[%clk 0:00:05]} 68. h6 {[%clk 0:00:17]}  Rf8+ {[%clk 0:00:05]} 69. Ke6 {[%clk 0:00:17]}  Kg4 {[%clk 0:00:05]} 70. g7 {[%clk 0:00:17]}  Rc8 {[%clk 0:00:05]} 71. h7 {[%clk 0:00:17]}  Rc6+ {[%clk 0:00:05]} 72. Kd5 {[%clk 0:00:17]}  Rg6 {[%clk 0:00:05]} 73. g8=Q {[%clk 0:00:16]}  Kf3 {[%clk 0:00:06]} 74. Qxg6 {[%clk 0:00:16]}  Ke2 {[%clk 0:00:07]} 75. Qxe4 {[%clk 0:00:16]}  Kf1 {[%clk 0:00:08]} 76. f4 {[%clk 0:00:14]}  Ke2 {[%clk 0:00:04]} 77. f5 {[%clk 0:00:14]} 1-0


[Site "https://www.chess.com"]

[Event "Titled Tuesday Blitz June 27 Late 2023"]
[White "liwadas82"]
[Black "Pinheiro, Iung Alicio de O."]
[BlackFideId "2104350"]
[WhiteElo "2443"]
[BlackElo "2575"]
[Result "0-1"]
[Round "7"]
[TimeControl "180+2"]
[Date "2023.06.27"]
[WhiteClock "0:00:34"]
[BlackClock "0:00:08"]
[Board "76"]

1. e4 {[%clk 0:03:00]}  e5 {[%clk 0:02:56]} 2. Nf3 {[%clk 0:03:00]}  Nc6 {[%clk 0:02:49]} 3. Bb5 {[%clk 0:03:00]}  a6 {[%clk 0:02:45]} 4. Ba4 {[%clk 0:03:00]}  d6 {[%clk 0:02:44]} 5. O-O {[%clk 0:02:58]}  Bd7 {[%clk 0:02:44]} 6. c3 {[%clk 0:02:52]}  Nge7 {[%clk 0:02:44]} 7. d4 {[%clk 0:02:52]}  Ng6 {[%clk 0:02:43]} 8. d5 {[%clk 0:02:51]}  Nb8 {[%clk 0:02:43]} 9. Bxd7+ {[%clk 0:02:52]}  Qxd7 {[%clk 0:02:44]} 10. c4 {[%clk 0:02:53]}  Be7 {[%clk 0:02:42]} 11. Nc3 {[%clk 0:02:52]}  O-O {[%clk 0:02:42]} 12. b4 {[%clk 0:02:39]}  f5 {[%clk 0:02:39]} 13. a4 {[%clk 0:02:32]}  a5 {[%clk 0:02:09]} 14. Ba3 {[%clk 0:02:31]}  axb4 {[%clk 0:02:07]} 15. Bxb4 {[%clk 0:02:32]}  Na6 {[%clk 0:02:07]} 16. Ba3 {[%clk 0:02:32]}  fxe4 {[%clk 0:01:52]} 17. Nxe4 {[%clk 0:02:31]}  Qf5 {[%clk 0:01:31]} 18. Nfd2 {[%clk 0:02:27]}  Nf4 {[%clk 0:01:26]} 19. g3 {[%clk 0:02:20]}  Qg6 {[%clk 0:01:22]} 20. Kh1 {[%clk 0:02:15]}  Nd3 {[%clk 0:01:06]} 21. Qe2 {[%clk 0:02:09]}  Ndb4 {[%clk 0:00:56]} 22. Nb3 {[%clk 0:01:53]}  c5 {[%clk 0:00:39]} 23. dxc6 {[%clk 0:01:38]}  bxc6 {[%clk 0:00:39]} 24. Rad1 {[%clk 0:01:30]}  d5 {[%clk 0:00:28]} 25. cxd5 {[%clk 0:01:30]}  cxd5 {[%clk 0:00:29]} 26. Nc3 {[%clk 0:01:27]}  Qc6 {[%clk 0:00:24]} 27. Qxe5 {[%clk 0:01:08]}  Bf6 {[%clk 0:00:23]} 28. Nxd5 {[%clk 0:01:03]}  Bxe5 {[%clk 0:00:20]} 29. Na5 {[%clk 0:00:58]}  Qxa4 {[%clk 0:00:14]} 30. Ne7+ {[%clk 0:00:48]}  Kh8 {[%clk 0:00:14]} 31. Bxb4 {[%clk 0:00:45]}  Nxb4 {[%clk 0:00:11]} 32. Nb7 {[%clk 0:00:45]}  Qb5 {[%clk 0:00:09]} 33. Rfe1 {[%clk 0:00:37]}  Qxb7+ {[%clk 0:00:08]} 34. Kg1 {[%clk 0:00:37]}  Qxe7 {[%clk 0:00:08]} 35. Re2 {[%clk 0:00:38]}  Nc6 {[%clk 0:00:07]} 36. Rde1 {[%clk 0:00:38]}  Rae8 {[%clk 0:00:07]} 37. f4 {[%clk 0:00:37]}  Bd4+ {[%clk 0:00:07]} 38. Kf1 {[%clk 0:00:38]}  Qf7 {[%clk 0:00:07]} 39. Re4 {[%clk 0:00:35]}  Rxe4 {[%clk 0:00:07]} 40. Rxe4 {[%clk 0:00:36]}  Qc4+ {[%clk 0:00:07]} 41. Kg2 {[%clk 0:00:37]}  Qd5 {[%clk 0:00:07]} 42. Kf3 {[%clk 0:00:34]}  Re8 {[%clk 0:00:08]} 0-1


[Site "https://www.chess.com"]

[Event "Titled Tuesday Blitz June 27 Late 2023"]
[White "Ai, Evan"]
[Black "Ganiev, Roman"]
[WhiteFideId "2094770"]
[BlackFideId "4131452"]
[WhiteElo "2434"]
[BlackElo "2573"]
[Result "0-1"]
[Round "7"]
[TimeControl "180+2"]
[Date "2023.06.27"]
[WhiteClock "0:00:01"]
[BlackClock "0:00:31"]
[Board "77"]

1. d4 {[%clk 0:03:00]}  Nf6 {[%clk 0:02:56]} 2. c4 {[%clk 0:03:01]}  e6 {[%clk 0:02:56]} 3. Nf3 {[%clk 0:03:00]}  b6 {[%clk 0:02:56]} 4. g3 {[%clk 0:03:00]}  Bb7 {[%clk 0:02:57]} 5. Bg2 {[%clk 0:03:00]}  Bb4+ {[%clk 0:02:57]} 6. Bd2 {[%clk 0:02:58]}  Be7 {[%clk 0:02:58]} 7. Nc3 {[%clk 0:02:57]}  O-O {[%clk 0:02:58]} 8. Qc2 {[%clk 0:02:56]}  c6 {[%clk 0:02:56]} 9. e4 {[%clk 0:02:55]}  d5 {[%clk 0:02:53]} 10. e5 {[%clk 0:02:55]}  Nfd7 {[%clk 0:02:49]} 11. b3 {[%clk 0:02:47]}  Na6 {[%clk 0:02:44]} 12. a3 {[%clk 0:02:46]}  Rc8 {[%clk 0:02:43]} 13. h4 {[%clk 0:02:41]}  c5 {[%clk 0:02:41]} 14. cxd5 {[%clk 0:02:28]}  cxd4 {[%clk 0:02:34]} 15. Nxd4 {[%clk 0:02:23]}  Nxe5 {[%clk 0:02:34]} 16. O-O {[%clk 0:02:15]}  Bc5 {[%clk 0:02:25]} 17. Qe4 {[%clk 0:02:05]}  Ng6 {[%clk 0:02:09]} 18. Be3 {[%clk 0:01:51]}  exd5 {[%clk 0:01:56]} 19. Nxd5 {[%clk 0:01:49]}  Nc7 {[%clk 0:01:00]} 20. Ne7+ {[%clk 0:00:57]}  Nxe7 {[%clk 0:00:58]} 21. Qxb7 {[%clk 0:00:56]}  Bxd4 {[%clk 0:00:59]} 22. Rad1 {[%clk 0:00:54]}  Ne6 {[%clk 0:00:59]} 23. Bxd4 {[%clk 0:00:20]}  Nxd4 {[%clk 0:00:59]} 24. Rfe1 {[%clk 0:00:19]}  Nef5 {[%clk 0:00:50]} 25. Bh3 {[%clk 0:00:19]}  Qf6 {[%clk 0:00:50]} 26. Qxa7 {[%clk 0:00:16]}  Rc3 {[%clk 0:00:47]} 27. Re4 {[%clk 0:00:13]}  Nxg3 {[%clk 0:00:36]} 28. fxg3 {[%clk 0:00:13]}  Rxg3+ {[%clk 0:00:36]} 29. Bg2 {[%clk 0:00:13]}  Qf3 {[%clk 0:00:31]} 30. Rd2 {[%clk 0:00:03]}  Qxe4 {[%clk 0:00:31]} 31. Kh2 {[%clk 0:00:02]}  Qxh4+ {[%clk 0:00:30]} 32. Kg1 {[%clk 0:00:02]}  Nf3+ {[%clk 0:00:30]} 33. Kf2 {[%clk 0:00:01]}  Nxd2 {[%clk 0:00:31]} 0-1


[Site "https://www.chess.com"]

[Event "Titled Tuesday Blitz June 27 Late 2023"]
[White "Ezat, Mohamed"]
[Black "Labussiere, Yago"]
[WhiteFideId "10600906"]
[BlackFideId "2186969"]
[WhiteElo "2563"]
[BlackElo "2434"]
[Result "0-1"]
[Round "7"]
[TimeControl "180+2"]
[Date "2023.06.27"]
[WhiteClock "0:01:32"]
[BlackClock "0:00:25"]
[Board "78"]

1. e4 {[%clk 0:03:00]}  c5 {[%clk 0:02:51]} 2. d4 {[%clk 0:03:00]}  cxd4 {[%clk 0:02:50]} 3. c3 {[%clk 0:03:00]}  Nf6 {[%clk 0:02:50]} 4. e5 {[%clk 0:03:00]}  Nd5 {[%clk 0:02:50]} 5. Nf3 {[%clk 0:03:01]}  d6 {[%clk 0:02:50]} 6. Bc4 {[%clk 0:03:01]}  Nb6 {[%clk 0:02:49]} 7. Bb3 {[%clk 0:03:01]}  Nc6 {[%clk 0:02:49]} 8. e6 {[%clk 0:03:00]}  Bxe6 {[%clk 0:02:49]} 9. Bxe6 {[%clk 0:03:00]}  fxe6 {[%clk 0:02:49]} 10. O-O {[%clk 0:03:00]}  dxc3 {[%clk 0:02:36]} 11. Nxc3 {[%clk 0:03:00]}  Qd7 {[%clk 0:02:21]} 12. Re1 {[%clk 0:02:58]}  e5 {[%clk 0:02:16]} 13. a4 {[%clk 0:02:58]}  g6 {[%clk 0:02:10]} 14. a5 {[%clk 0:02:56]}  Nc8 {[%clk 0:02:07]} 15. a6 {[%clk 0:02:56]}  Bg7 {[%clk 0:02:02]} 16. Nd5 {[%clk 0:02:50]}  bxa6 {[%clk 0:01:45]} 17. Qa4 {[%clk 0:02:47]}  Nb6 {[%clk 0:01:39]} 18. Qb3 {[%clk 0:02:44]}  Nxd5 {[%clk 0:01:28]} 19. Qxd5 {[%clk 0:02:44]}  e6 {[%clk 0:01:28]} 20. Qc4 {[%clk 0:02:40]}  O-O {[%clk 0:01:17]} 21. Rxa6 {[%clk 0:02:39]}  Rac8 {[%clk 0:01:17]} 22. Qa4 {[%clk 0:02:38]}  Rf7 {[%clk 0:01:12]} 23. Ng5 {[%clk 0:02:36]}  Re7 {[%clk 0:01:12]} 24. Qa2 {[%clk 0:02:12]}  Nd4 {[%clk 0:01:02]} 25. Ne4 {[%clk 0:02:07]}  Ne2+ {[%clk 0:00:56]} 26. Kh1 {[%clk 0:02:05]}  Nxc1 {[%clk 0:00:51]} 27. Qb1 {[%clk 0:02:04]}  d5 {[%clk 0:00:47]} 28. Nd6 {[%clk 0:02:02]}  Rc6 {[%clk 0:00:45]} 29. Rxc1 {[%clk 0:01:48]}  Rxa6 {[%clk 0:00:41]} 30. Rc8+ {[%clk 0:01:47]}  Bf8 {[%clk 0:00:41]} 31. Qc1 {[%clk 0:01:40]}  Qxd6 {[%clk 0:00:35]} 32. h4 {[%clk 0:01:40]}  e4 {[%clk 0:00:28]} 33. g3 {[%clk 0:01:34]}  Rf7 {[%clk 0:00:25]} 34. Kg2 {[%clk 0:01:33]}  Qb6 {[%clk 0:00:23]} 35. Qd2 {[%clk 0:01:33]}  e3 {[%clk 0:00:23]} 36. fxe3 {[%clk 0:01:32]}  Ra2 {[%clk 0:00:21]} 37. Rc2 {[%clk 0:01:31]}  Rb7 {[%clk 0:00:19]} 38. e4 {[%clk 0:01:29]}  Rxb2 {[%clk 0:00:20]} 39. exd5 {[%clk 0:01:28]}  Rxc2 {[%clk 0:00:20]} 40. Qxc2 {[%clk 0:01:29]}  Qb2 {[%clk 0:00:20]} 41. Qxb2 {[%clk 0:01:30]}  Rxb2+ {[%clk 0:00:21]} 42. Kh3 {[%clk 0:01:31]}  exd5 {[%clk 0:00:21]} 43. h5 {[%clk 0:01:31]}  d4 {[%clk 0:00:22]} 44. h6 {[%clk 0:01:31]}  Re2 {[%clk 0:00:22]} 45. g4 {[%clk 0:01:32]}  Re8 {[%clk 0:00:23]} 46. g5 {[%clk 0:01:29]}  d3 {[%clk 0:00:24]} 47. Kg4 {[%clk 0:01:29]}  d2 {[%clk 0:00:25]} 48. Kf4 {[%clk 0:01:30]}  d1=Q {[%clk 0:00:25]} 49. Kg3 {[%clk 0:01:31]}  Qd3+ {[%clk 0:00:25]} 50. Kh4 {[%clk 0:01:32]}  Re4# {[%clk 0:00:25]} 0-1


[Site "https://www.chess.com"]

[Event "Titled Tuesday Blitz June 27 Late 2023"]
[White "Golubev, Mikhail"]
[Black "Figorito, Nick"]
[WhiteFideId "14100983"]
[BlackFideId "30923689"]
[WhiteElo "2547"]
[BlackElo "2423"]
[Result "1-0"]
[Round "7"]
[TimeControl "180+2"]
[Date "2023.06.27"]
[WhiteClock "0:01:04"]
[BlackClock "0:00:10"]
[Board "82"]

1. e4 {[%clk 0:03:00]}  e6 {[%clk 0:02:59]} 2. d3 {[%clk 0:03:00]}  d5 {[%clk 0:03:00]} 3. Nd2 {[%clk 0:03:00]}  Nc6 {[%clk 0:03:00]} 4. Ngf3 {[%clk 0:02:59]}  Nf6 {[%clk 0:03:01]} 5. e5 {[%clk 0:02:57]}  Nd7 {[%clk 0:03:01]} 6. d4 {[%clk 0:02:58]}  f6 {[%clk 0:02:54]} 7. exf6 {[%clk 0:02:56]}  Nxf6 {[%clk 0:02:55]} 8. Bb5 {[%clk 0:02:54]}  Bd6 {[%clk 0:02:41]} 9. O-O {[%clk 0:02:53]}  O-O {[%clk 0:02:38]} 10. Re1 {[%clk 0:02:39]}  a6 {[%clk 0:02:32]} 11. Bxc6 {[%clk 0:02:38]}  bxc6 {[%clk 0:02:33]} 12. Nb3 {[%clk 0:02:34]}  Ne4 {[%clk 0:02:26]} 13. Be3 {[%clk 0:02:30]}  Bd7 {[%clk 0:02:19]} 14. Nc5 {[%clk 0:02:29]}  Rf5 {[%clk 0:01:21]} 15. Nxe4 {[%clk 0:01:56]}  dxe4 {[%clk 0:01:22]} 16. Nd2 {[%clk 0:01:56]}  Bxh2+ {[%clk 0:00:59]} 17. Kxh2 {[%clk 0:01:55]}  Qh4+ {[%clk 0:00:59]} 18. Kg1 {[%clk 0:01:55]}  Rh5 {[%clk 0:01:00]} 19. f3 {[%clk 0:01:40]}  Qh2+ {[%clk 0:00:50]} 20. Kf2 {[%clk 0:01:34]}  Qh4+ {[%clk 0:00:41]} 21. Ke2 {[%clk 0:01:31]}  Qg3 {[%clk 0:00:33]} 22. Nxe4 {[%clk 0:01:15]}  Qxg2+ {[%clk 0:00:33]} 23. Kd3 {[%clk 0:01:12]}  c5 {[%clk 0:00:25]} 24. Rg1 {[%clk 0:01:05]}  c4+ {[%clk 0:00:10]} 25. Kc3 {[%clk 0:01:04]} 1-0


[Site "https://www.chess.com"]

[Event "Titled Tuesday Blitz June 27 Late 2023"]
[White "Cooklev, Steven"]
[Black "Perez, Maximiliano"]
[WhiteFideId "2050552"]
[BlackFideId "117234"]
[WhiteElo "2387"]
[BlackElo "2536"]
[Result "1/2-1/2"]
[Round "7"]
[TimeControl "180+2"]
[Date "2023.06.27"]
[WhiteClock "0:00:19"]
[BlackClock "0:00:30"]
[Board "86"]

1. e4 {[%clk 0:03:00]}  c5 {[%clk 0:02:59]} 2. Nf3 {[%clk 0:03:01]}  Nc6 {[%clk 0:03:00]} 3. Nc3 {[%clk 0:03:00]}  e5 {[%clk 0:02:59]} 4. Bc4 {[%clk 0:03:00]}  Be7 {[%clk 0:02:59]} 5. d3 {[%clk 0:03:00]}  d6 {[%clk 0:02:59]} 6. O-O {[%clk 0:02:58]}  Nf6 {[%clk 0:02:59]} 7. Ng5 {[%clk 0:02:59]}  O-O {[%clk 0:03:00]} 8. f4 {[%clk 0:02:57]}  Bg4 {[%clk 0:03:00]} 9. Qe1 {[%clk 0:02:43]}  exf4 {[%clk 0:02:56]} 10. Bxf4 {[%clk 0:02:42]}  Nd4 {[%clk 0:02:52]} 11. Qf2 {[%clk 0:02:26]}  h6 {[%clk 0:02:50]} 12. Nf3 {[%clk 0:02:03]}  Nxf3+ {[%clk 0:02:49]} 13. gxf3 {[%clk 0:02:02]}  Bh3 {[%clk 0:02:49]} 14. Rfe1 {[%clk 0:02:01]}  Nh5 {[%clk 0:02:49]} 15. Bg3 {[%clk 0:01:58]}  Bf6 {[%clk 0:02:45]} 16. Kh1 {[%clk 0:01:46]}  Bd4 {[%clk 0:02:42]} 17. Qd2 {[%clk 0:01:45]}  Qf6 {[%clk 0:02:34]} 18. f4 {[%clk 0:01:34]}  Qg6 {[%clk 0:02:23]} 19. Rg1 {[%clk 0:01:26]}  Bxg1 {[%clk 0:02:12]} 20. Rxg1 {[%clk 0:01:27]}  Nxg3+ {[%clk 0:02:12]} 21. Rxg3 {[%clk 0:01:24]}  Qh5 {[%clk 0:02:13]} 22. Nd5 {[%clk 0:01:19]}  Kh8 {[%clk 0:02:12]} 23. f5 {[%clk 0:01:18]}  b5 {[%clk 0:01:57]} 24. Bxb5 {[%clk 0:01:08]}  Rab8 {[%clk 0:01:56]} 25. Nf4 {[%clk 0:00:36]}  Qh4 {[%clk 0:01:51]} 26. Rxh3 {[%clk 0:00:33]}  Qg5 {[%clk 0:01:35]} 27. Rg3 {[%clk 0:00:32]}  Qh4 {[%clk 0:01:34]} 28. Qc3 {[%clk 0:00:28]}  Rg8 {[%clk 0:01:27]} 29. Bc4 {[%clk 0:00:25]}  Qxf4 {[%clk 0:01:23]} 30. Bxf7 {[%clk 0:00:18]}  Qf1+ {[%clk 0:01:17]} 31. Rg1 {[%clk 0:00:19]}  Qf3+ {[%clk 0:01:17]} 32. Rg2 {[%clk 0:00:20]}  d5 {[%clk 0:00:40]} 33. Bxd5 {[%clk 0:00:19]}  Rxb2 {[%clk 0:00:28]} 34. Qxb2 {[%clk 0:00:17]}  Qf1+ {[%clk 0:00:27]} 35. Rg1 {[%clk 0:00:17]}  Qf3+ {[%clk 0:00:28]} 36. Rg2 {[%clk 0:00:18]}  Qf1+ {[%clk 0:00:29]} 37. Rg1 {[%clk 0:00:18]}  Qf3+ {[%clk 0:00:30]} 38. Rg2 {[%clk 0:00:19]} 1/2-1/2


[Site "https://www.chess.com"]

[Event "Titled Tuesday Blitz June 27 Late 2023"]
[White "Skaric, Djuro"]
[Black "Kuzmin, Roman"]
[WhiteFideId "934569"]
[BlackFideId "44134932"]
[WhiteElo "2348"]
[BlackElo "2533"]
[Result "0-1"]
[Round "7"]
[TimeControl "180+2"]
[Date "2023.06.27"]
[WhiteClock "0:01:09"]
[BlackClock "0:00:18"]
[Board "88"]

1. g3 {[%clk 0:03:00]}  d5 {[%clk 0:02:48]} 2. Bg2 {[%clk 0:03:00]}  Nf6 {[%clk 0:02:48]} 3. d3 {[%clk 0:02:59]}  c5 {[%clk 0:02:45]} 4. Nf3 {[%clk 0:02:59]}  Nc6 {[%clk 0:02:44]} 5. O-O {[%clk 0:02:59]}  e6 {[%clk 0:02:41]} 6. Nc3 {[%clk 0:02:59]}  Bd6 {[%clk 0:02:27]} 7. e4 {[%clk 0:02:59]}  O-O {[%clk 0:02:24]} 8. h3 {[%clk 0:02:58]}  b6 {[%clk 0:02:14]} 9. Ne1 {[%clk 0:02:54]}  dxe4 {[%clk 0:02:12]} 10. dxe4 {[%clk 0:02:53]}  Ba6 {[%clk 0:02:10]} 11. Nd3 {[%clk 0:02:51]}  c4 {[%clk 0:01:57]} 12. Nf4 {[%clk 0:02:25]}  Qe7 {[%clk 0:01:49]} 13. e5 {[%clk 0:02:23]}  Nxe5 {[%clk 0:01:49]} 14. Bxa8 {[%clk 0:02:21]}  Rxa8 {[%clk 0:01:50]} 15. Nh5 {[%clk 0:02:18]}  Bb7 {[%clk 0:01:41]} 16. f4 {[%clk 0:02:17]}  Bc5+ {[%clk 0:01:26]} 17. Kh2 {[%clk 0:02:14]}  Rd8 {[%clk 0:01:26]} 18. Nxf6+ {[%clk 0:02:14]}  Qxf6 {[%clk 0:01:16]} 19. Qe2 {[%clk 0:02:08]}  Nc6 {[%clk 0:00:44]} 20. Be3 {[%clk 0:02:08]}  Bb4 {[%clk 0:00:41]} 21. Rad1 {[%clk 0:02:07]}  Re8 {[%clk 0:00:40]} 22. Ne4 {[%clk 0:01:59]}  Qg6 {[%clk 0:00:38]} 23. Nd6 {[%clk 0:01:57]}  Bxd6 {[%clk 0:00:38]} 24. Rxd6 {[%clk 0:01:56]}  h5 {[%clk 0:00:38]} 25. Qf2 {[%clk 0:01:53]}  Ne7 {[%clk 0:00:34]} 26. Rd7 {[%clk 0:01:38]}  Qe4 {[%clk 0:00:33]} 27. g4 {[%clk 0:01:36]}  hxg4 {[%clk 0:00:20]} 28. hxg4 {[%clk 0:01:35]}  f6 {[%clk 0:00:20]} 29. Re1 {[%clk 0:01:23]}  Kf7 {[%clk 0:00:19]} 30. c3 {[%clk 0:01:16]}  Rh8+ {[%clk 0:00:19]} 31. Kg3 {[%clk 0:01:15]}  Qh7 {[%clk 0:00:18]} 32. Qg1 {[%clk 0:01:09]}  Qh3+ {[%clk 0:00:17]} 33. Kf2 {[%clk 0:01:09]}  Qf3# {[%clk 0:00:18]} 0-1


[Site "https://www.chess.com"]